bitfinex-derivatives/quotes_ETHF0:USTF0_20260312
["timestamp","ask_amount","ask_price","bid_price","bid_amount"]
[1773348405034,6.95106135,2063.8,2063.1,0.57890628]
[1773348405241,0.64364905,2063.8,2063.1,0.57890628]
[1773348406443,0.00437108,2063.8,2063.1,0.57890628]
[1773348407542,12.46119711,2064.4,2063.3,0.57890628]
[1773348407543,6.94348393,2064.1,2063.3,0.57890628]
[1773348407738,0.63927797,2064.1,2063.3,0.57890628]
[1773348408540,0.64550693,2064.1,2063.3,0.58275856]
[1773348409838,0.63927797,2063.7,2063.3,0.00385228]
[1773348410038,0.63927797,2063.7,2063.3,6.35385228]
[1773348410233,0.00622896,2064.1,2063.5,0.24227]
[1773348410435,1.6342253,2064.5,2063.7,0.63165263]
[1773348411239,1.6342253,2064.5,2063.9,0.63165263]
[1773348411436,1.64026299,2064.5,2063.9,0.63165263]
[1773348411843,0.90300725,2064.5,2063.9,0.63165263]
[1773348412046,0.6002253,2064.7,2064.0,0.63165263]
[1773348412246,0.6002253,2064.6,2064.0,0.63165263]
[1773348412439,0.5782253,2064.6,2064.1,0.022]
[1773348413042,0.64887883,2064.6,2064.1,0.022]
[1773348413642,0.64887883,2064.6,2064.1,0.65365263]
[1773348416554,6.349,2065.0,2064.3,0.63165263]
[1773348416555,0.6002253,2065.0,2064.3,0.63165263]
[1773348416849,0.5782253,2065.0,2064.4,0.65365263]
[1773348417349,0.6002253,2064.8,2064.4,0.022]
[1773348417948,0.6002253,2064.8,2064.4,0.65365263]
[1773348418655,0.6002253,2064.8,2064.4,0.022]
[1773348419652,0.00486091,2065.0,2064.4,0.65365263]
[1773348419949,0.6002253,2064.8,2064.4,0.022]
[1773348420456,0.6002253,2064.6,2064.2,0.65365263]
[1773348421348,0.044,2064.8,2064.2,0.65365263]
[1773348421661,0.6442253,2064.8,2064.2,0.65365263]
[1773348422250,2.08560055,2064.6,2064.2,0.65365263]
[1773348422454,2.08560055,2064.6,2064.0,0.022]
[1773348422455,0.6002253,2064.3,2064.0,0.022]
[1773348422753,0.6002253,2064.3,2064.0,0.65365263]
[1773348423354,0.6002253,2064.3,2063.8,0.89511311]
[1773348423659,0.6002253,2064.3,2063.9,0.63165263]
[1773348424449,0.6002253,2064.1,2063.8,0.022]
[1773348424654,0.6002253,2064.1,2063.6,0.65365263]
[1773348427349,0.6002253,2064.3,2063.7,0.63165263]
[1773348427557,0.7102253,2064.4,2063.9,0.63165263]
[1773348428359,0.6002253,2064.3,2063.7,0.63165263]
[1773348429362,0.7102253,2064.4,2063.9,0.63165263]
[1773348430862,0.7102253,2064.4,2064.0,0.63165263]
[1773348431155,0.11,2064.4,2064.0,0.63165263]
[1773348431361,0.7102253,2064.4,2064.0,0.63165263]
[1773348432563,0.6002253,2064.7,2064.1,0.63165263]
[1773348432954,0.6002253,2064.7,2064.5,0.022]
[1773348432955,0.5782253,2064.7,2064.5,0.022]
[1773348434761,0.6222253,2064.8,2064.5,0.65365263]
[1773348434961,0.022,2064.8,2064.5,0.65365263]
[1773348435461,0.6222253,2064.8,2064.5,0.65365263]
[1773348437064,0.6222253,2064.8,2064.5,0.022]
[1773348441062,0.61752383,2064.7,2064.3,0.022]
[1773348441264,0.66152383,2064.7,2064.3,0.022]
[1773348442769,0.66152383,2064.7,2064.3,0.64097531]
[1773348443570,0.044,2064.7,2064.3,0.64097531]
[1773348444071,8.43746146,2065.0,2064.5,0.61897531]
[1773348444072,0.61752383,2064.9,2064.5,0.61897531]
[1773348444461,0.59552383,2064.9,2064.7,0.022]
[1773348444660,0.62238474,2065.0,2064.7,0.64097531]
[1773348444864,0.62238474,2065.0,2064.7,0.022]
[1773348445062,0.64438474,2065.0,2064.7,0.022]
[1773348445463,0.60038474,2065.0,2064.7,0.64097531]
[1773348445669,6.06567297,2065.5,2064.9,0.61897531]
[1773348445670,0.61752383,2065.5,2064.9,0.61897531]
[1773348445969,0.61752383,2065.5,2065.1,0.64097531]
[1773348445970,0.61752383,2065.4,2065.1,0.64097531]
[1773348446466,0.61752383,2065.5,2065.1,0.64097531]
[1773348446669,0.00474014,2065.4,2065.1,0.64477597]
[1773348446972,0.61752383,2065.3,2064.9,0.022]
[1773348447469,0.61752383,2065.3,2064.9,0.64097531]
[1773348447871,0.61752383,2065.3,2064.9,0.022]
[1773348448071,0.61752383,2065.3,2064.9,0.02682815]
[1773348449672,0.61752383,2065.3,2064.9,0.64580346]
[1773348449875,0.68826397,2065.4,2064.9,0.64580346]
[1773348450671,0.68826397,2065.4,2064.7,0.022]
[1773348450869,0.088,2065.3,2064.7,0.64097531]
[1773348451674,0.088,2065.3,2064.7,0.64453636]
[1773348454467,0.088,2065.3,2064.7,0.88984636]
[1773348454763,0.088,2065.3,2064.8,0.86505531]
[1773348454963,0.088,2065.3,2064.9,0.86689531]
[1773348455170,0.088,2065.3,2065.1,0.86670531]
[1773348455365,0.088,2065.3,2065.2,0.61897531]
[1773348455562,0.00332589,2065.3,2065.2,0.61897531]
[1773348458375,0.62084972,2065.3,2064.8,0.61897531]
[1773348459679,0.62084972,2065.3,2064.7,0.02556105]
[1773348463377,6.7388855,2065.3,2064.5,0.022]
[1773348463682,0.61409727,2064.8,2064.5,0.022]
[1773348463878,0.63942316,2064.9,2064.5,0.65140811]
[1773348464382,0.63942316,2064.9,2064.5,0.65617467]
[1773348464778,0.63942316,2064.9,2064.5,0.02676656]
[1773348466584,0.61409727,2064.6,2064.3,0.022]
[1773348466789,0.68342316,2064.6,2064.1,0.65140811]
[1773348467591,0.61409727,2064.5,2064.1,0.65613239]
[1773348470190,0.61409727,2064.5,2064.1,0.02672428]
[1773348471189,0.61409727,2064.5,2063.9,0.65140811]
[1773348471389,0.70542316,2064.5,2063.9,0.65140811]
[1773348471986,0.09132589,2064.5,2064.2,0.61794859]
[1773348472186,0.00213427,2064.5,2064.2,0.62402214]
[1773348476488,0.60346422,2064.5,2064.2,0.62402214]
[1773348476695,0.60346422,2064.5,2064.2,0.00607355]
[1773348479102,0.60346422,2064.5,2063.9,0.88761023]
[1773348479802,0.60346422,2064.5,2064.0,0.61794859]
[1773348480002,0.60346422,2064.5,2064.0,0.62206233]
[1773348480703,0.60346422,2064.5,2064.0,0.00411374]
[1773348481201,0.60346422,2064.5,2064.0,0.62206233]
[1773348482004,0.60346422,2064.5,2064.0,0.00411374]
[1773348482300,0.60346422,2064.5,2063.9,0.022]
[1773348482795,0.02413427,2064.0,2063.7,0.63994859]
[1773348483202,0.62546422,2064.0,2063.7,0.63994859]
[1773348483402,0.62546422,2064.0,2063.7,0.64374628]
[1773348489104,0.02413427,2064.0,2063.7,0.64374628]
[1773348489304,0.60132995,2064.5,2063.9,0.61794859]
[1773348489603,0.57932995,2064.9,2064.3,0.022]
[1773348490308,0.57932995,2064.9,2064.3,0.63994859]
[1773348493211,6.69605391,2064.9,2064.3,0.63994859]
[1773348493410,0.60132995,2064.8,2064.3,0.63994859]
[1773348493915,0.60132995,2064.8,2064.3,0.022]
[1773348494314,0.60132995,2064.7,2064.1,0.022]
[1773348494617,0.60132995,2064.5,2064.1,0.63994859]
[1773348495914,0.60132995,2064.5,2063.9,0.022]
[1773348496118,0.66732995,2064.5,2063.9,0.022]
[1773348496312,0.66732995,2064.5,2063.9,0.63994859]
[1773348496513,0.066,2064.5,2063.9,0.63994859]
[1773348500822,0.66398387,2064.5,2063.9,0.63994859]
[1773348503424,0.66398387,2064.5,2064.0,0.6024793]
[1773348505529,0.066,2064.5,2064.0,0.6024793]
[1773348506529,0.066,2064.5,2064.1,0.8486493]
[1773348506730,0.066,2064.5,2064.2,0.8515293]
[1773348506931,0.066,2064.5,2064.2,0.6024793]
[1773348507130,0.066,2064.5,2064.2,0.8467693]
[1773348507432,0.066,2064.5,2064.3,0.8469893]
[1773348510330,0.066,2064.5,2064.4,0.6024793]
[1773348513640,0.59798387,2064.8,2064.4,0.6024793]
[1773348513930,0.57598387,2064.8,2064.4,0.6024793]
[1773348523045,6.92198387,2064.8,2064.4,0.6024793]
[1773348523247,0.57598387,2064.8,2064.4,0.6024793]
[1773348540560,0.022,2064.9,2064.4,0.6024793]
[1773348540766,4.01982093,2065.3,2064.6,0.62255924]
[1773348540767,6.93828484,2065.3,2064.6,0.62255924]
[1773348540963,0.59228484,2065.2,2064.6,0.62255924]
[1773348541260,0.57028484,2065.2,2065.1,0.022]
[1773348541460,0.57028484,2065.2,2064.9,0.022]
[1773348541660,6.91628484,2065.2,2064.9,0.022]
[1773348541862,2.67740542,2065.1,2064.7,0.022]
[1773348542061,0.59228484,2065.0,2064.5,0.64455924]
[1773348542257,0.59228484,2064.8,2064.5,0.022]
[1773348542870,0.59228484,2064.8,2064.5,0.64455924]
[1773348543658,0.59228484,2064.8,2064.5,0.022]
[1773348543861,2.67740542,2064.8,2064.5,0.022]
[1773348544166,0.59228484,2064.7,2064.3,0.88498006]
[1773348544664,0.59228484,2064.7,2064.1,0.022]
[1773348544665,0.59228484,2064.5,2064.1,0.64455924]
[1773348545464,2.08512058,2064.6,2064.1,0.64455924]
[1773348545664,2.67740542,2064.6,2064.1,0.64455924]
[1773348546774,0.59228484,2064.6,2064.1,0.64455924]
[1773348547670,6.93728484,2064.7,2064.1,0.64455924]
[1773348550375,0.59228484,2064.7,2064.1,0.64455924]
[1773348550572,6.93728484,2064.7,2064.1,0.64455924]
[1773348551672,0.59228484,2064.6,2064.1,0.64455924]
[1773348551968,0.59228484,2064.8,2064.4,0.62255924]
[1773348565588,0.58690581,2064.7,2064.2,0.61083335]
[1773348566283,0.58690581,2064.7,2064.3,0.61083335]
[1773348566489,0.58690581,2064.7,2064.3,0.85572335]
[1773348566685,0.58690581,2064.7,2064.3,0.61083335]
[1773348567488,0.58690581,2064.7,2064.3,0.85461335]
[1773348573090,0.58690581,2064.7,2064.4,0.85860335]
[1773348573492,0.58690581,2064.7,2064.3,0.61083335]
[1773348573692,0.58690581,2064.7,2064.3,0.85432335]
[1773348574496,0.58690581,2064.7,2064.3,0.61083335]
[1773348579799,0.58690581,2064.8,2064.3,0.61083335]
[1773348590812,0.56734342,2064.5,2064.1,0.022]
[1773348591112,0.56734342,2064.5,2064.1,0.57601078]
[1773348599413,0.56734342,2064.6,2064.1,0.57601078]
[1773348603114,0.56734342,2064.1,2063.7,0.02579769]
[1773348603314,0.56734342,2064.1,2063.6,0.55401078]
[1773348604113,6.346,2064.3,2063.6,0.55401078]
[1773348604413,6.91334342,2064.4,2063.6,0.55811596]
[1773348604614,6.91334342,2064.4,2063.7,0.55401078]
[1773348604813,0.56734342,2064.3,2063.7,0.55401078]
[1773348610617,0.56734342,2064.3,2063.6,0.25180282]
[1773348610817,0.56734342,2064.3,2063.6,0.00410518]
[1773348616215,0.56734342,2064.3,2063.5,0.022]
[1773348617115,0.56734342,2064.3,2063.5,0.57601078]
[1773348617317,0.56734342,2064.3,2063.5,0.58089179]
[1773348620123,0.56734342,2064.2,2063.5,0.58089179]
[1773348622220,0.56734342,2064.2,2063.3,0.022]
[1773348622426,0.56734342,2064.2,2063.3,0.60782125]
[1773348622427,0.61153525,2063.8,2063.3,0.60782125]
[1773348623317,0.61603724,2063.8,2063.3,0.61316036]
[1773348623920,0.00450199,2063.8,2063.3,0.61316036]
[1773348627329,0.00450199,2063.8,2063.3,0.85904036]
[1773348627723,0.00450199,2063.8,2063.4,0.83300125]
[1773348627924,0.00450199,2063.8,2063.5,0.83320125]
[1773348628128,0.00450199,2063.8,2063.6,0.83239125]
[1773348628432,0.61153525,2064.0,2063.6,0.83239125]
[1773348628630,0.61153525,2064.0,2063.6,0.58582125]
[1773348629330,0.61625314,2064.0,2063.6,0.58582125]
[1773348631326,0.61153525,2064.1,2063.6,0.58582125]
[1773348632426,0.61581907,2064.1,2063.6,0.58582125]
[1773348646442,0.61581907,2064.1,2063.7,0.58786273]
[1773348646742,0.61581907,2064.1,2063.8,0.58786273]
[1773348646938,0.61581907,2064.1,2063.6,0.58786273]
[1773348647239,0.61581907,2064.1,2063.8,0.58786273]
[1773348648137,6.93392639,2064.2,2063.8,0.58786273]
[1773348648334,0.58592639,2064.3,2063.8,0.58786273]
[1773348648539,6.88945562,2064.5,2063.9,0.58786273]
[1773348648832,0.22,2064.5,2063.9,0.58786273]
[1773348649037,0.22448659,2064.5,2064.0,0.58786273]
[1773348649343,0.22448659,2064.5,2064.3,0.58786273]
[1773348649540,0.22448659,2064.5,2064.3,0.83116273]
[1773348649741,0.19868883,2064.5,2064.3,0.58786273]
[1773348649936,0.78461522,2064.5,2063.8,2.08575487]
[1773348650141,0.78461522,2064.5,2064.0,0.83151273]
[1773348650340,0.78461522,2064.5,2064.2,0.83203273]
[1773348650640,0.78461522,2064.5,2064.2,0.58786273]
[1773348657849,0.56806952,2064.4,2064.0,0.57371973]
[1773348659150,0.56806952,2064.4,2063.9,0.8158584]
[1773348659749,0.56806952,2064.4,2064.0,0.57371973]
[1773348662853,0.19868883,2064.5,2064.1,0.57371973]
[1773348666551,0.19868883,2064.5,2064.3,0.57371973]
[1773348668351,0.56806952,2064.4,2064.1,0.57371973]
[1773348670156,0.56806952,2064.4,2063.9,0.24213867]
[1773348670157,0.56806952,2064.2,2063.6,0.57371973]
[1773348670553,0.56806952,2064.2,2063.9,0.57371973]
[1773348670760,0.56806952,2064.4,2063.9,0.81852973]
[1773348670957,0.56806952,2064.4,2064.0,0.82333973]
[1773348672556,0.56806952,2064.4,2064.0,0.57371973]
[1773348675962,0.56806952,2064.4,2063.8,0.57371973]
[1773348677762,0.56806952,2064.4,2063.8,0.81599973]
[1773348678563,0.56806952,2064.4,2063.8,0.57371973]
[1773348679362,0.56806952,2064.4,2063.8,0.81887973]
[1773348679566,0.56806952,2064.4,2063.9,0.82010973]
[1773348680467,0.56806952,2064.4,2064.0,0.82123556]
[1773348682566,0.56806952,2064.4,2064.0,0.57200556]
[1773348686666,0.56806952,2064.4,2063.7,2.08572202]
[1773348686870,0.56806952,2064.4,2063.8,0.57200556]
[1773348688275,0.56806952,2064.4,2063.8,0.81462556]
[1773348688475,0.56806952,2064.4,2063.9,0.81733556]
[1773348689372,0.56806952,2064.4,2063.9,0.57200556]
[1773348689576,0.56806952,2064.4,2064.0,0.81568556]
[1773348690576,0.56806952,2064.4,2064.0,0.57200556]
[1773348693077,0.56806952,2064.4,2063.8,0.57200556]
[1773348693378,0.60536896,2064.2,2063.6,0.80984396]
[1773348696381,0.60536896,2064.2,2063.6,1.05346396]
[1773348699080,0.60536896,2064.2,2063.4,0.81427556]
[1773348699282,0.60536896,2064.2,2063.5,0.57200556]
[1773348706389,0.60536896,2064.2,2063.6,0.56333818]
[1773348714901,0.55588237,2064.0,2063.5,0.58397086]
[1773348715095,0.55588237,2064.0,2063.4,1.07379291]
[1773348715601,0.55588237,2064.0,2063.5,0.58397086]
[1773348721507,0.55588237,2063.6,2063.3,0.02733911]
[1773348721707,0.55588237,2063.6,2063.1,0.022]
[1773348722707,0.55588237,2063.6,2063.1,0.02659771]
[1773348722908,0.55588237,2063.6,2063.1,0.61056857]
[1773348723806,0.55588237,2064.0,2063.3,0.58397086]
[1773348724005,0.55588237,2063.8,2063.1,0.61056857]
[1773348724405,0.55588237,2063.8,2063.1,0.02659771]
[1773348726504,0.55588237,2063.8,2063.1,0.61056857]
[1773348731305,0.55588237,2063.7,2063.1,0.02659771]
[1773348731708,0.55588237,2063.5,2062.9,0.022]
[1773348732615,0.55588237,2063.5,2062.9,0.02649429]
[1773348740819,0.61091083,2063.8,2063.1,0.56878486]
[1773348747330,0.61091083,2063.8,2063.2,0.81155486]
[1773348747529,0.61091083,2063.8,2062.9,0.02649429]
[1773348747530,0.61091083,2063.8,2063.3,0.81152486]
[1773348747732,0.61091083,2063.8,2063.4,0.81130486]
[1773348748131,0.61091083,2063.8,2063.4,0.56878486]
[1773348748741,0.61091083,2063.8,2063.2,0.56878486]
[1773348752339,0.61091083,2063.8,2063.2,0.81143486]
[1773348752535,0.61091083,2063.8,2063.3,0.81190486]
[1773348753039,0.61091083,2063.8,2063.3,0.56878486]
[1773348756741,0.61091083,2063.8,2063.1,0.80682512]
[1773348757042,0.61091083,2063.8,2063.2,0.56878486]
[1773348758846,0.61091083,2063.8,2063.2,0.81109486]
[1773348759144,0.61091083,2063.8,2063.2,0.81106486]
[1773348759644,0.61091083,2063.8,2063.3,0.81119486]
[1773348759845,0.61091083,2063.8,2063.3,0.56878486]
[1773348769344,0.57409114,2063.7,2063.3,0.56878486]
[1773348779449,0.57409114,2063.7,2062.9,0.63928243]
[1773348780450,0.57409114,2063.7,2063.1,0.61278814]
[1773348780657,0.55831868,2063.8,2063.1,0.61278814]
[1773348781557,0.55831868,2063.8,2063.3,0.61278814]
[1773348781753,0.55831868,2063.8,2063.4,0.61278814]
[1773348781953,0.55831868,2063.8,2063.4,0.86128814]
[1773348782454,7.04031868,2064.0,2063.4,0.61278814]
[1773348782655,6.12169312,2063.9,2063.4,0.61278814]
[1773348782858,6.12169312,2063.9,2063.3,2.08702011]
[1773348782859,0.55831868,2064.0,2063.6,0.86300814]
[1773348783053,0.55831868,2064.0,2063.7,0.86315814]
[1773348784651,6.72120224,2064.3,2063.8,0.61278814]
[1773348784955,0.55831868,2064.1,2063.8,0.85859814]
[1773348785562,0.55831868,2064.1,2063.8,0.61278814]
[1773348790761,0.55831868,2064.1,2063.5,2.08702011]
[1773348790960,0.55831868,2064.1,2063.7,0.61278814]
[1773348798674,7.11231868,2064.1,2063.7,0.61278814]
[1773348799876,0.55831868,2064.0,2063.7,0.61278814]
[1773348800174,0.00448659,2064.5,2064.0,0.61278814]
[1773348800370,0.56280527,2064.5,2064.0,0.61278814]
[1773348800765,0.56280527,2064.5,2064.3,0.022]
[1773348800766,0.54080527,2064.5,2064.3,0.022]
[1773348801674,0.54687588,2064.5,2064.3,0.022]
[1773348802271,2.67789599,2064.5,2064.1,0.022]
[1773348802476,0.60451361,2064.2,2063.9,0.022]
[1773348802775,0.60451361,2064.2,2063.9,0.60541776]
[1773348805872,0.60451361,2064.2,2063.8,0.58341776]
[1773348806067,0.60451361,2064.0,2063.7,0.022]
[1773348806276,0.60451361,2063.8,2063.5,0.022]
[1773348806578,0.60451361,2063.8,2063.4,0.58341776]
[1773348808374,0.60451361,2063.8,2063.5,0.58341776]
[1773348808574,0.60451361,2063.8,2063.5,0.83227776]
[1773348809276,2.69153372,2063.9,2063.5,0.83227776]
[1773348811778,2.69153372,2063.9,2063.6,0.83647776]
[1773348813881,2.69153372,2063.9,2063.6,0.58341776]
[1773348814186,0.36099361,2063.6,2063.3,0.84310843]
[1773348814382,0.60451361,2063.6,2063.3,0.60541776]
[1773348814779,0.60451361,2063.6,2063.3,0.84979776]
[1773348814978,0.60451361,2063.6,2063.3,0.85240776]
[1773348817881,2.69153372,2064.0,2063.5,0.83697776]
[1773348818081,0.60451361,2063.9,2063.6,0.58341776]
[1773348818383,0.60451361,2063.9,2063.4,0.58341776]
[1773348818683,0.60451361,2063.9,2063.5,0.83272776]
[1773348819184,0.60451361,2063.9,2063.5,0.58341776]
[1773348820688,2.08702011,2063.8,2063.4,0.58341776]
[1773348820880,2.69153372,2063.8,2063.4,0.58341776]
[1773348821481,0.60451361,2063.7,2063.3,0.60541776]
[1773348824488,0.60451361,2063.7,2063.3,0.84864776]
[1773348826486,2.66933245,2063.6,2063.3,0.60541776]
[1773348826683,0.58231234,2063.5,2063.3,0.022]
[1773348826986,0.58231234,2063.3,2063.1,0.022]
[1773348827292,0.58231234,2063.3,2063.0,0.05188117]
[1773348828293,0.58231234,2063.6,2063.0,0.29606117]
[1773348830102,0.58231234,2063.5,2063.0,0.29606117]
[1773348830599,2.08702011,2063.4,2062.9,0.26882429]
[1773348830802,0.55914547,2063.3,2062.9,0.27012429]
[1773348831201,0.55914547,2063.3,2062.9,0.5177121]
[1773348832596,0.55914547,2063.3,2062.9,0.02649429]
[1773348832898,0.55914547,2063.1,2062.9,0.02649429]
[1773348833101,0.55914547,2063.1,2062.7,0.56975804]
[1773348833395,0.55914547,2063.1,2062.7,0.81352804]
[1773348834105,0.55914547,2063.1,2062.7,0.81830364]
[1773348834902,0.55914547,2063.1,2062.7,1.05672978]
[1773348837900,0.55914547,2063.1,2062.7,0.50897174]
[1773348838302,0.55914547,2063.1,2062.7,1.05952827]
[1773348841105,0.55914547,2063.1,2062.7,0.50897174]
[1773348841502,0.55914547,2063.1,2062.7,0.2696056]
[1773348841806,0.55914547,2062.9,2062.7,0.2749456]
[1773348842004,2.08702011,2062.8,2062.5,0.022]
[1773348842211,0.55914547,2062.7,2062.3,0.57509771]
[1773348842896,0.55914547,2062.7,2062.3,0.57981903]
[1773348843099,0.55914547,2062.7,2062.3,0.02672132]
[1773348843498,0.55914547,2062.7,2062.1,0.57246334]
[1773348844298,0.55914547,2062.7,2062.1,0.27448]
[1773348844506,0.55914547,2062.7,2062.1,0.02486226]
[1773348846307,0.55914547,2062.7,2062.1,0.57672606]
[1773348849407,0.55914547,2062.7,2062.1,0.02486226]
[1773348855414,2.08969205,2062.4,2061.9,0.022]
[1773348855710,2.08969205,2062.8,2061.1,0.022]
[1773348855711,0.55914547,2062.2,2061.1,0.022]
[1773348855917,0.55914547,2061.7,2061.1,0.62436112]
[1773348856610,0.55914547,2061.7,2061.1,0.022]
[1773348857213,0.55914547,2061.5,2060.9,0.022]
[1773348857415,0.55914547,2061.3,2060.7,0.022]
[1773348857609,0.56462664,2061.3,2060.5,0.022]
[1773348857811,0.55914547,2061.1,2060.5,0.022]
[1773348858009,0.55914547,2061.1,2060.2,0.60236112]
[1773348858518,0.55914547,2061.1,2060.1,0.26466]
[1773348858519,0.55914547,2060.7,2060.1,0.022]
[1773348860020,0.55914547,2060.7,2060.1,0.62436112]
[1773348860713,0.56657027,2061.2,2060.1,0.62436112]
[1773348861923,0.56657027,2061.2,2060.3,0.61001072]
[1773348862121,0.56657027,2061.2,2060.3,0.85487072]
[1773348862426,0.56657027,2061.2,2060.3,0.61001072]
[1773348863725,0.56657027,2061.2,2060.1,0.022]
[1773348863918,0.56657027,2061.2,2060.2,0.61001072]
[1773348864218,0.56657027,2061.2,2060.1,0.022]
[1773348864413,0.56657027,2061.2,2060.1,0.63201072]
[1773348864618,0.56657027,2061.0,2060.1,0.63201072]
[1773348865720,0.56657027,2061.0,2060.1,0.022]
[1773348866423,0.56657027,2061.0,2059.9,0.022]
[1773348866825,0.56657027,2060.9,2059.9,0.022]
[1773348868134,0.56657027,2060.9,2059.9,0.63201072]
[1773348868630,0.56657027,2060.9,2060.1,0.61001072]
[1773348869220,0.56657027,2061.2,2060.3,0.61001072]
[1773348869624,0.56657027,2061.2,2060.4,0.61001072]
[1773348869824,0.56657027,2061.2,2060.6,0.85886072]
[1773348871025,0.56657027,2061.2,2060.7,0.85552072]
[1773348871831,0.56657027,2061.2,2060.7,0.61001072]
[1773348872024,0.56657027,2061.2,2060.7,0.85386072]
[1773348872231,0.56657027,2061.2,2060.7,0.85333072]
[1773348872429,0.56657027,2061.2,2060.7,0.61001072]
[1773348874433,0.57205144,2061.3,2060.7,0.61001072]
[1773348879540,0.00548117,2061.3,2060.7,0.61001072]
[1773348879740,0.56657027,2061.6,2060.8,0.61001072]
[1773348879934,0.56657027,2061.6,2060.9,0.61001072]
[1773348880133,0.56657027,2061.9,2061.1,0.24484]
[1773348880337,0.56657027,2061.9,2061.3,0.61001072]
[1773348880638,0.57285723,2061.9,2061.3,0.61444876]
[1773348882740,0.57285723,2061.9,2061.3,0.00443804]
[1773348882943,0.57285723,2061.9,2060.9,0.5747656]
[1773348883837,0.57285723,2061.9,2060.9,0.57580873]
[1773348885539,0.57285723,2061.9,2061.0,0.8176856]
[1773348885744,0.57285723,2061.9,2061.2,0.8183756]
[1773348886245,0.57285723,2061.9,2061.2,0.5747656]
[1773348889049,0.57285723,2061.9,2061.1,0.5747656]
[1773348889550,0.57285723,2061.9,2061.2,0.5747656]
[1773348893559,0.57285723,2061.9,2061.3,0.6082461]
[1773348893860,0.57285723,2061.9,2061.6,0.8528561]
[1773348894052,0.57342763,2062.1,2061.7,0.8513161]
[1773348894252,0.57342763,2062.1,2061.7,0.6082461]
[1773348894759,0.57342763,2062.1,2061.2,0.6082461]
[1773348894952,0.57877447,2062.1,2061.2,0.6082461]
[1773348900658,0.57877447,2062.1,2060.9,0.24318294]
[1773348900659,0.57877447,2062.1,2061.4,0.6082461]
[1773348900955,6.53923174,2062.4,2061.6,0.6082461]
[1773348900956,0.57342763,2062.3,2061.6,0.6082461]
[1773348902059,0.57780695,2062.3,2061.6,0.6082461]
[1773348902258,0.00437932,2062.3,2061.6,0.6082461]
[1773348902454,0.506,2062.4,2061.8,0.6082461]
[1773348903059,1.07942763,2062.4,2062.0,0.6082461]
[1773348903259,0.70726627,2062.4,2062.1,0.8547261]
[1773348903463,0.71268431,2062.4,2062.1,0.6082461]
[1773348903863,0.71268431,2062.4,2062.1,0.8521261]
[1773348904166,0.71268431,2062.4,2062.1,0.6082461]
[1773348904961,0.71268431,2062.4,2061.8,0.6082461]
[1773348905258,0.13925668,2062.4,2061.8,0.6082461]
[1773348905965,0.71268431,2062.4,2061.9,0.6082461]
[1773348906168,0.71268431,2062.4,2062.1,0.6082461]
[1773348906563,0.13925668,2062.4,2062.1,0.6082461]
[1773348909968,6.68e-06,2062.4,2062.1,0.6082461]
[1773348910172,0.57342763,2062.8,2062.2,0.6082461]
[1773348910362,0.29757161,2063.5,2062.2,0.6082461]
[1773348910363,0.57342763,2063.2,2062.2,0.6082461]
[1773348910568,0.57342763,2063.1,2062.6,0.6302461]
[1773348910971,0.57342763,2063.1,2062.6,0.022]
[1773348911267,0.57766007,2063.1,2062.6,0.63515427]
[1773348914080,0.57766007,2063.1,2062.6,0.02690817]
[1773348914879,0.57766007,2063.1,2062.6,0.63515427]
[1773348916078,0.57766007,2063.1,2062.6,0.02690817]
[1773348916575,0.57342763,2062.9,2062.4,0.022]
[1773348916879,0.57342763,2062.9,2062.4,0.6302461]
[1773348917481,0.57342763,2062.9,2062.4,0.63641672]
[1773348921578,0.62133762,2062.8,2062.4,0.63641672]
[1773348921982,2.71060447,2062.9,2062.4,0.63641672]
[1773348922180,0.62133762,2062.9,2062.4,0.63641672]
[1773348927279,0.044,2063.0,2062.4,0.63641672]
[1773348928988,0.044,2063.0,2062.5,0.57309054]
[1773348929689,0.66533762,2063.0,2062.5,0.57309054]
[1773348936986,0.66533762,2063.0,2062.4,0.02817062]
[1773348937191,0.58895934,2062.9,2062.4,0.02817062]
[1773348937390,0.58895934,2062.9,2062.4,0.64484993]
[1773348938493,0.58895934,2062.9,2062.4,0.02817062]
[1773348938695,2.13326685,2063.0,2062.2,0.63867931]
[1773348938696,0.58895934,2062.7,2062.2,0.63867931]
[1773348939892,0.58895934,2062.7,2062.2,0.64317044]
[1773348944699,0.57949297,2062.5,2062.2,0.64888066]
[1773348945005,0.57949297,2062.5,2062.0,0.64438953]
[1773348945203,0.57949297,2062.5,2062.1,0.62238953]
[1773348945805,0.57949297,2062.5,2062.1,0.62692484]
[1773348951407,0.57949297,2062.5,2062.1,0.87067484]
[1773348951813,0.57949297,2062.5,2062.2,0.86326296]
[1773348952307,0.66533361,2062.7,2062.3,0.86524296]
[1773348952511,0.66533361,2062.7,2062.4,0.61891296]
[1773348952911,0.66533361,2062.7,2062.2,0.61891296]
[1773348958208,0.66533361,2062.7,2062.1,0.00453531]
[1773348958415,0.57733361,2062.5,2062.1,0.00453531]
[1773348958819,0.57733361,2062.3,2062.1,0.00453531]
[1773348959006,0.57733361,2062.3,2061.8,0.64091296]
[1773348959414,0.57733361,2062.3,2061.9,0.61891296]
[1773348960016,0.57733361,2062.3,2061.9,0.62128202]
[1773348961512,0.11,2062.6,2062.0,2.08926685]
[1773348961712,0.57733361,2062.7,2062.1,0.61891296]
[1773348962114,0.55533361,2062.7,2062.3,0.64091296]
[1773348962813,0.59933361,2062.7,2062.3,0.64091296]
[1773348964911,0.044,2062.7,2062.3,0.64091296]
[1773348965419,0.62133361,2062.7,2062.3,0.64091296]
[1773348967913,0.57733361,2062.9,2062.3,0.64091296]
[1773348968117,0.57733361,2062.9,2062.3,0.61891296]
[1773348968315,0.58156605,2063.1,2062.7,0.64091296]
[1773348968513,0.57733361,2063.7,2062.7,0.64091296]
[1773348968717,0.57733361,2063.5,2062.7,0.64091296]
[1773348968918,0.022,2063.0,2062.7,0.64091296]
[1773348969621,0.02728442,2063.0,2062.7,0.64091296]
[1773348976319,0.57733361,2063.4,2062.7,0.64091296]
[1773348976525,2.08953093,2063.6,2062.7,0.61891296]
[1773348976526,0.57733361,2063.6,2062.7,0.61891296]
[1773348977025,0.55533361,2063.6,2063.2,0.022]
[1773348977218,0.55533361,2063.6,2063.0,0.64091296]
[1773348977423,0.57733361,2063.4,2063.0,0.64091296]
[1773348978321,0.64333361,2063.5,2063.0,0.64091296]
[1773348979026,0.64333361,2063.5,2063.0,0.022]
[1773348980226,0.57733361,2063.3,2062.6,0.64091296]
[1773348980424,0.68733361,2063.3,2062.6,0.64091296]
[1773348996036,0.56924643,2063.1,2062.6,0.022]
[1773348996339,0.56924643,2063.1,2062.6,0.60086931]
[1773348999236,6.75667949,2063.3,2062.6,0.60086931]
[1773348999433,0.11,2063.3,2062.6,0.60086931]
[1773349004136,0.69396839,2063.3,2062.6,0.60086931]
[1773349005038,0.69396839,2063.3,2062.6,0.022]
[1773349005243,0.58396839,2063.1,2062.6,0.022]